bitfinex/quotes_SOLUSD_20250520
["timestamp","ask_amount","ask_price","bid_price","bid_amount"]
[1747781277805,20.91050304,167.38,167.32,29.62]
[1747781278820,33.51838044,167.38,167.32,29.62]
[1747781279115,20.91050304,167.38,167.32,29.62]
[1747781279500,4.419671,167.37,167.32,29.62]
[1747781279819,17.0275484,167.37,167.28,26.0]
[1747781279997,17.0275484,167.37,167.29,29.62]
[1747781280199,20.91425156,167.35,167.29,29.62]
[1747781281201,4.419671,167.34,167.29,29.62]
[1747781282217,20.91425156,167.35,167.29,29.62]
[1747781282600,5.9751434,167.36,167.29,29.62]
[1747781283216,4.41836726,167.35,167.29,29.62]
[1747781284828,5.97585753,167.34,167.29,29.62]
[1747781286727,20.91328203,167.36,167.29,29.62]
[1747781288830,5.97585753,167.34,167.29,29.62]
[1747781290941,20.91328203,167.36,167.29,29.62]
[1747781291610,4.41794498,167.35,167.29,29.62]
[1747781292529,20.91328203,167.36,167.29,29.62]
[1747781292844,33.52115943,167.36,167.29,29.62]
[1747781293540,138.2,167.35,167.29,29.62]
[1747781293709,137.7,167.35,167.29,29.62]
[1747781294142,150.3078774,167.35,167.29,29.62]
[1747781294310,4.41978277,167.34,167.29,29.62]
[1747781294936,5.97657183,167.32,167.29,29.62]
[1747781295719,20.91800142,167.32,167.29,29.62]
[1747781297542,33.52587882,167.32,167.29,29.62]
[1747781297919,33.52587882,167.32,167.26,26.0]
[1747781298326,12.6078774,167.3,167.24,29.62]
[1747781298523,4.4227818,167.29,167.24,29.62]
[1747781299235,20.92050209,167.3,167.24,29.62]
[1747781299641,20.92050209,167.3,167.24,55.62]
[1747781299827,20.92050209,167.3,167.24,29.62]
[1747781300745,12.6078774,167.29,167.24,29.62]
[1747781300921,13.1078774,167.29,167.24,29.62]
[1747781301121,5.97835834,167.27,167.24,29.62]
[1747781302421,20.92316602,167.28,167.24,29.62]
[1747781305442,33.53104342,167.28,167.24,29.62]
[1747781306652,20.92316602,167.28,167.24,29.62]
[1747781308146,5.97800095,167.28,167.24,29.62]
[1747781309858,20.92300334,167.28,167.24,29.62]
[1747781312553,5.97800095,167.28,167.24,29.62]
[1747781312747,5.97728631,167.3,167.24,29.62]
[1747781313850,20.91961769,167.31,167.24,29.62]
[1747781317744,5.97764361,167.29,167.24,29.62]
[1747781318063,20.92175264,167.29,167.24,29.62]
[1747781319887,14.94410903,167.29,167.24,29.62]
[1747781322062,20.92175264,167.29,167.24,29.62]
[1747781323166,5.97835834,167.27,167.24,29.62]
[1747781324371,20.92175264,167.29,167.24,29.62]
[1747781325682,63.4178481,167.29,167.24,29.62]
[1747781325863,4.42482491,167.28,167.24,29.62]
[1747781326248,12.6078774,167.25,167.15,7.7356]
[1747781326453,20.92925909,167.23,167.19,26.0]
[1747781327466,20.92925909,167.23,167.16,29.78]
[1747781327667,20.92925909,167.23,167.16,55.78]
[1747781330674,14.94947078,167.23,167.16,55.78]
[1747781337274,14.94947078,167.23,167.16,55.48]
[1747781337474,27.55734818,167.23,167.16,55.48]
[1747781337677,165.25734818,167.23,167.16,26.0]
[1747781337867,12.6078774,167.22,167.16,26.0]
[1747781338069,165.25734818,167.23,167.16,26.0]
[1747781338868,171.23713649,167.23,167.16,26.0]
[1747781339380,4.41832361,167.22,167.16,26.0]
[1747781340083,20.93176244,167.21,167.16,26.0]
[1747781341871,20.93176244,167.21,167.14,223.64]
[1747781342271,20.93176244,167.21,167.14,249.64]
[1747781342673,20.93176244,167.21,167.14,26.0]
[1747781343283,5.98050355,167.21,167.17,26.0]
[1747781343877,181.15900351,167.27,167.18,26.0]
[1747781344080,5.97871577,167.26,167.19,29.48]
[1747781345686,20.92550519,167.26,167.19,29.48]
[1747781345881,33.53338259,167.26,167.19,29.48]
[1747781346094,11.5211,167.31,167.22,26.0]
[1747781346095,5.97800095,167.28,167.22,26.0]
[1747781346261,5.97585753,167.34,167.26,26.0]
[1747781346464,5.97585753,167.34,167.27,29.48]
[1747781346890,4.42068834,167.33,167.27,29.48]
[1747781348489,5.97657183,167.32,167.27,29.48]
[1747781350475,34.02587882,167.32,167.27,29.48]
[1747781350673,12.6078774,167.31,167.27,29.48]
[1747781350875,60.90587882,167.32,167.27,29.48]
[1747781351398,4.41808586,167.31,167.27,29.48]
[1747781351902,142.11808586,167.31,167.27,29.48]
[1747781352374,20.92050209,167.3,167.27,29.48]
[1747781363101,20.92050209,167.3,167.24,29.46]
[1747781363483,34.02837949,167.3,167.24,29.46]
[1747781363689,20.92050209,167.3,167.24,29.46]
[1747781364507,5.97728631,167.3,167.24,29.46]
[1747781366705,20.91728439,167.33,167.24,29.46]
[1747781367304,4.4235146,167.32,167.24,29.46]
[1747781367793,4.4235146,167.32,167.25,26.88]
[1747781368196,5.97621466,167.33,167.25,26.88]
[1747781369320,20.91425156,167.35,167.25,26.88]
[1747781370919,5.97550044,167.35,167.27,8.0645]
[1747781371592,5.97550044,167.35,167.28,18.64964886]
[1747781371992,20.91126374,167.38,167.28,18.64964886]
[1747781375715,12.6078774,167.36,167.27,1.5544]
[1747781375913,12.6078774,167.35,167.27,30.9944]
[1747781376114,12.6078774,167.36,167.27,30.9944]
[1747781376418,13.1078774,167.37,167.27,30.9944]
[1747781376814,4.42010652,167.36,167.27,30.9944]
[1747781377115,17.02798392,167.36,167.27,30.9944]
[1747781377317,154.72798392,167.36,167.27,30.9944]
[1747781377691,20.91425156,167.35,167.27,30.9944]
[1747781382098,20.86774736,167.35,167.27,30.9944]
[1747781389411,4.43630567,167.34,167.27,30.9944]
[1747781390226,20.91675132,167.33,167.27,30.9944]
[1747781390397,20.91675132,167.33,167.27,29.44]
[1747781391310,4.44027153,167.32,167.27,29.44]
[1747781392050,5.97692905,167.31,167.28,26.0]
[1747781393833,14.94049905,167.34,167.28,26.0]
[1747781394635,4.4429277,167.33,167.28,26.0]
[1747781395039,5.97657183,167.32,167.28,26.0]
[1747781397722,14.94049905,167.34,167.28,26.0]
[1747781399031,4.44692106,167.33,167.28,26.0]
[1747781400127,5.97657183,167.32,167.28,26.0]
[1747781402043,14.94049905,167.34,167.28,26.0]
[1747781402904,14.94049905,167.34,167.27,29.44]
[1747781402905,14.1619774,167.33,167.27,29.44]
[1747781403134,38.6078774,167.32,167.27,29.44]
[1747781403716,26.0,167.32,167.27,29.44]
[1747781403917,176.3078774,167.32,167.27,29.44]
[1747781404241,20.92050209,167.3,167.27,29.44]
[1747781405326,20.92050209,167.3,167.22,29.44]
[1747781405959,4.45128663,167.29,167.22,29.44]
[1747781406647,5.97800095,167.28,167.22,29.44]
[1747781408419,20.92300334,167.28,167.22,29.44]
[1747781408613,14.94500239,167.28,167.22,29.44]
[1747781408846,27.55287979,167.28,167.22,29.44]
[1747781409443,4.45641706,167.27,167.22,29.44]
[1747781409851,12.6078774,167.26,167.22,29.44]
[1747781410225,4.45641706,167.25,167.22,29.44]
[1747781410733,5.97943075,167.24,167.22,29.44]
[1747781411854,33.53468214,167.25,167.22,29.44]
[1747781412237,12.6078774,167.23,167.16,29.44]
[1747781412443,12.6078774,167.21,167.16,29.44]
[1747781413335,12.6078774,167.2,167.16,29.44]
[1747781413858,19.14964886,167.24,167.16,29.44]
[1747781413859,12.6078774,167.21,167.16,29.44]
[1747781414027,33.53713649,167.23,167.16,29.44]
[1747781415449,5.97978831,167.23,167.16,55.44]
[1747781415955,5.97907324,167.25,167.16,55.44]
[1747781416148,5.97907324,167.25,167.16,82.32]
[1747781417482,12.6078774,167.25,167.16,82.32]
[1747781417633,12.6078774,167.23,167.16,55.44]
[1747781417824,12.6078774,167.22,167.16,55.44]
[1747781418026,12.6078774,167.21,167.16,29.44]
[1747781418453,12.6078774,167.22,167.16,29.44]
[1747781418747,156.34964886,167.25,167.16,29.44]
[1747781418951,12.6078774,167.2,167.16,29.44]
[1747781419554,20.9342664,167.19,167.16,29.44]
[1747781419850,33.5421438,167.19,167.16,29.44]
[1747781420232,12.6078774,167.18,167.16,29.44]
[1747781420432,33.5421438,167.19,167.16,29.44]
[1747781421222,12.6078774,167.18,167.16,29.44]
[1747781421423,12.6078774,167.18,167.11,29.46]
[1747781421628,20.93677094,167.17,167.11,29.46]
[1747781422647,5.98193455,167.17,167.11,29.46]
[1747781423455,5.98121897,167.19,167.11,29.46]
[1747781427557,31.98014591,167.22,167.12,6.0616]
[1747781429242,46.93051069,167.22,167.12,6.0616]
[1747781431466,31.98014591,167.22,167.14,1.6259]
[1747781431659,5.98014591,167.22,167.14,1.6259]
[1747781431854,5.97943075,167.24,167.14,1.6259]
[1747781432558,5.97943075,167.24,167.16,26.0]
[1747781432767,5.97943075,167.24,167.17,29.44]
[1747781433264,5.97903106,167.26,167.18,18.64964886]
[1747781433438,5.97800095,167.28,167.19,6.0714]
[1747781433635,5.97800095,167.28,167.19,32.0714]
[1747781433939,33.53088074,167.28,167.19,26.0]
[1747781434670,12.6078774,167.27,167.19,26.0]
[1747781435169,33.53088074,167.28,167.19,26.0]
[1747781437171,33.53088074,167.28,167.22,26.0]
[1747781437841,63.42088552,167.28,167.22,26.0]
[1747781438037,12.6078774,167.27,167.2,26.0]
[1747781439679,20.92550519,167.26,167.2,26.0]
[1747781442187,14.94678942,167.26,167.2,26.0]
[1747781446379,33.53338259,167.26,167.2,26.0]
[1747781446770,12.6078774,167.25,167.2,26.0]
[1747781447674,12.6078774,167.25,167.18,26.0]
[1747781447991,31.25752626,167.24,167.18,26.0]
[1747781448170,12.6078774,167.23,167.18,26.0]
[1747781448365,5.98014591,167.22,167.17,29.44]
[1747781450898,18.58766571,167.23,167.17,29.44]
[1747781451273,5.97978831,167.23,167.17,29.44]
[1747781451695,5.97978831,167.23,167.18,26.0]
[1747781451996,5.97871577,167.26,167.18,26.0]
[1747781460387,5.97871577,167.26,167.17,29.44]
[1747781460591,5.97835834,167.27,167.17,29.44]
[1747781460792,5.97835834,167.27,167.18,6.5837]
[1747781461612,20.92425419,167.27,167.18,6.5837]
[1747781461909,33.53213159,167.27,167.18,6.5837]
[1747781462297,17.05933687,167.26,167.17,29.44]
[1747781463324,12.6078774,167.26,167.2,26.0]
[1747781463813,5.97907324,167.25,167.2,26.0]
[1747781464194,12.6078774,167.24,167.17,29.44]
[1747781465124,12.6078774,167.23,167.17,29.44]
[1747781465425,1.6131,167.23,167.17,29.44]
[1747781465789,5.98014591,167.22,167.17,29.44]
[1747781467519,20.92957352,167.23,167.17,29.44]
[1747781469416,33.53745092,167.23,167.17,29.44]
[1747781469920,4.45588608,167.22,167.17,29.44]
[1747781470503,20.92957352,167.23,167.17,29.44]
[1747781472247,4.45911048,167.22,167.17,29.44]
[1747781472714,5.98050355,167.21,167.17,29.44]
[1747781473238,4.45911048,167.22,167.17,29.44]
[1747781473912,10.43856356,167.24,167.17,29.44]
[1747781474427,5.97945308,167.24,167.17,29.44]
[1747781474632,5.97945308,167.24,167.17,56.34]
[1747781475231,5.97871577,167.26,167.2,26.0]
[1747781476303,5.97800095,167.28,167.2,26.0]
[1747781476498,5.97800095,167.28,167.2,27.6208]
[1747781476736,4.466739,167.27,167.2,27.6208]
[1747781476912,4.466739,167.27,167.2,33.914]
[1747781477322,5.97800095,167.28,167.2,39.51816747]
[1747781478513,5.97728631,167.3,167.24,26.0]
[1747781478840,5.97728631,167.3,167.25,29.42]
[1747781479334,4.46481507,167.29,167.25,29.42]
[1747781480215,17.07269247,167.29,167.25,29.42]
[1747781480424,4.46481507,167.28,167.25,29.42]
[1747781480615,20.92425419,167.27,167.19,29.4]
[1747781480807,33.53213159,167.27,167.19,29.4]
[1747781481007,33.53213159,167.27,167.2,26.0]
[1747781481435,4.46481507,167.26,167.2,26.0]
[1747781482135,5.97943075,167.24,167.2,26.0]
[1747781484143,20.92708573,167.25,167.2,26.0]
[1747781484340,20.92708573,167.25,167.19,29.4]
[1747781484548,4.45769579,167.24,167.19,29.4]
[1747781485323,20.92708573,167.25,167.19,29.4]
[1747781486645,14.94801249,167.25,167.19,29.4]
[1747781487334,4.45567982,167.24,167.19,29.4]
[1747781487549,17.06355722,167.24,167.19,29.4]
[1747781487924,17.06355722,167.24,167.16,55.38]
[1747781488224,4.45567982,167.23,167.16,55.38]
[1747781488857,5.98014591,167.22,167.16,55.38]
[1747781489250,137.7,167.26,167.2,26.0]
[1747781489447,5.97800095,167.28,167.2,32.1762]
[1747781489627,14.94221695,167.32,167.24,26.0]
[1747781489827,14.94221695,167.32,167.25,29.4]
[1747781490853,152.63932155,167.35,167.25,29.4]
[1747781491155,179.51932155,167.35,167.28,26.0]
[1747781491825,5.97585753,167.34,167.28,26.0]
[1747781494054,20.91550136,167.34,167.28,26.0]
[1747781495335,33.52337876,167.34,167.28,26.0]
[1747781495650,12.6078774,167.33,167.26,26.0]
[1747781495839,31.25752626,167.32,167.25,29.38]
[1747781496232,18.64964886,167.32,167.25,29.38]
[1747781497136,20.91800142,167.32,167.25,29.38]
[1747781499241,14.94142959,167.32,167.25,29.38]
[1747781500363,20.91800142,167.32,167.25,29.38]
[1747781500563,33.52587882,167.32,167.25,29.38]
[1747781501962,59.52587882,167.32,167.25,29.38]
[1747781503369,46.91800142,167.32,167.25,29.38]
[1747781503538,59.52587882,167.32,167.25,29.38]
[1747781505662,46.91800142,167.32,167.25,29.38]
[1747781508971,20.91800142,167.32,167.26,26.0]
[1747781510571,20.91800142,167.32,167.25,29.38]
[1747781510572,5.97657183,167.32,167.28,26.0]
[1747781511073,20.91800142,167.32,167.28,26.0]
[1747781512172,5.97657183,167.32,167.28,26.0]
[1747781513169,5.97585753,167.34,167.28,26.0]
[1747781515460,12.6078774,167.33,167.28,26.0]
[1747781515783,12.6078774,167.32,167.25,55.36]
[1747781515955,20.91550136,167.34,167.25,55.36]
[1747781516675,20.91550136,167.34,167.28,26.0]
[1747781516855,5.97585753,167.34,167.28,26.0]
[1747781517174,5.97585753,167.34,167.29,26.0]
[1747781517351,139.2042,167.38,167.29,26.0]
[1747781517550,5.9747864,167.37,167.29,32.4605]
[1747781517877,18.5826638,167.37,167.29,26.0]
[1747781518170,33.5196298,167.37,167.29,26.0]
[1747781518475,4.4519657,167.36,167.29,26.0]
[1747781519477,20.91425156,167.35,167.29,26.0]
[1747781520578,20.91425156,167.35,167.28,26.0]
[1747781520579,156.34964886,167.34,167.28,26.0]
[1747781520871,12.6078774,167.31,167.25,29.34]
[1747781521051,12.6078774,167.3,167.25,29.34]
[1747781521258,12.6078774,167.31,167.25,55.34]
[1747781521590,20.92050209,167.3,167.25,55.34]
[1747781521966,20.92050209,167.3,167.25,29.34]
[1747781522870,33.52837949,167.3,167.25,29.34]
[1747781523553,14.94321578,167.3,167.25,29.34]
[1747781524555,12.6078774,167.27,167.2,30.8749]
[1747781524751,12.6078774,167.26,167.2,29.34]
[1747781525086,12.6078774,167.24,167.2,29.34]
[1747781525384,12.6078774,167.23,167.2,29.34]
[1747781525757,5.98014591,167.22,167.2,29.34]
[1747781528389,20.9288904,167.24,167.2,29.34]
[1747781529068,5.97943075,167.24,167.2,29.34]
[1747781530390,14.94648706,167.27,167.2,29.34]
[1747781530690,5.97800095,167.28,167.21,26.0]
[1747781531306,5.97800095,167.28,167.23,26.0]
[1747781531472,5.97585753,167.34,167.27,26.0]
[1747781531674,18.58373493,167.34,167.28,29.36]
[1747781532001,12.6078774,167.32,167.28,29.36]
[1747781532207,12.6078774,167.32,167.27,26.0]
[1747781532208,12.6078774,167.31,167.21,75.0]
[1747781532396,33.52963004,167.29,167.23,26.0]
[1747781532707,20.92175264,167.29,167.23,26.0]
[1747781534211,12.6078774,167.28,167.23,26.0]
[1747781534380,5.97871577,167.26,167.23,26.0]
[1747781534811,20.92550519,167.26,167.22,29.36]
[1747781534985,33.53338259,167.26,167.22,29.36]
[1747781535377,20.92550519,167.26,167.22,29.36]
[1747781535580,5.97871577,167.26,167.22,29.36]
[1747781536906,20.92425419,167.27,167.22,29.36]
[1747781540295,33.53213159,167.27,167.22,29.36]
[1747781541823,33.53463374,167.25,167.22,29.36]
[1747781542126,20.92675634,167.25,167.22,29.36]
[1747781542711,14.9476831,167.25,167.22,29.36]
[1747781543115,27.5555605,167.25,167.17,29.36]
[1747781544125,14.9476831,167.25,167.17,29.36]
[1747781544721,5.97907324,167.25,167.17,29.36]
[1747781545831,5.97835834,167.27,167.19,26.0]
[1747781547034,20.92425419,167.27,167.19,26.0]
[1747781547241,33.53213159,167.27,167.19,26.0]
[1747781547526,33.53213159,167.27,167.2,29.34]
[1747781547704,20.92425419,167.27,167.2,29.34]
[1747781547904,5.97835834,167.27,167.2,29.34]
[1747781550032,20.92425419,167.27,167.2,29.34]
[1747781551233,26.0,167.26,167.2,29.34]
[1747781552534,31.97878914,167.26,167.21,1.5034]
[1747781552826,31.97878914,167.26,167.2,29.34]
[1747781553712,46.92557856,167.26,167.2,29.34]
[1747781554627,20.92557856,167.26,167.2,29.34]
[1747781555932,14.94678942,167.26,167.2,29.34]
[1747781557325,14.94678942,167.26,167.2,55.34]
[1747781558449,20.92550519,167.26,167.2,55.34]
[1747781560533,14.94678942,167.26,167.2,55.34]
[1747781561615,20.92550519,167.26,167.2,55.34]
[1747781567252,33.53338259,167.26,167.2,55.34]
[1747781567638,20.92550519,167.26,167.2,55.34]
[1747781571933,12.6078774,167.25,167.2,29.34]
[1747781573254,5.97943075,167.24,167.2,29.34]
[1747781574747,12.6078774,167.23,167.2,29.34]
[1747781574957,12.6078774,167.22,167.13,37.91508573]
[1747781575179,5.98050355,167.21,167.13,37.91508573]
[1747781576941,20.93176244,167.21,167.13,37.91508573]
[1747781577544,20.93176244,167.21,167.13,29.34]
[1747781580442,5.97943075,167.24,167.16,32.3851]
[1747781580643,20.9250046,167.27,167.2,26.0]
[1747781580847,5.97835834,167.27,167.21,29.34]
[1747781582143,20.92130173,167.3,167.21,29.34]
[1747781583667,33.52917913,167.3,167.21,29.34]
[1747781583975,31.25752626,167.29,167.21,29.34]
[1747781585068,171.22917913,167.3,167.21,29.34]
[1747781585257,198.10917913,167.3,167.21,29.34]
[1747781585643,12.6078774,167.25,167.19,26.0]
[1747781586059,12.6078774,167.26,167.19,26.0]
[1747781586367,33.53088074,167.28,167.19,26.0]
[1747781586770,20.92300334,167.28,167.21,26.0]
[1747781587872,14.94500239,167.28,167.21,26.0]
[1747781590073,20.92300334,167.28,167.21,26.0]
[1747781590683,33.53088074,167.28,167.21,26.0]
[1747781590873,12.6078774,167.27,167.21,26.0]
[1747781591675,33.53088074,167.28,167.21,26.0]
[1747781592864,12.6078774,167.26,167.21,26.0]
[1747781593271,12.6078774,167.25,167.18,29.34]
[1747781593482,12.6078774,167.24,167.18,29.34]
[1747781593665,12.6078774,167.24,167.18,55.34]
[1747781594181,12.6078774,167.25,167.18,55.34]
[1747781594883,20.92800764,167.24,167.18,55.34]
[1747781595190,20.92800764,167.24,167.18,29.34]
[1747781595356,5.97943075,167.24,167.18,29.34]
[1747781595556,5.97943075,167.24,167.21,26.0]
[1747781596792,20.92505319,167.27,167.18,56.8758]
[1747781596999,20.92505319,167.27,167.21,26.0]
[1747781597160,5.97835834,167.27,167.21,26.0]
[1747781598677,5.97835834,167.27,167.23,26.0]
[1747781598886,5.97835834,167.27,167.24,29.34]
[1747781599384,20.92108183,167.3,167.24,29.34]
[1747781600989,12.6078774,167.29,167.23,26.0]
[1747781601387,20.92300334,167.28,167.23,26.0]
[1747781601987,5.97800095,167.28,167.23,26.0]
[1747781602990,5.97728631,167.3,167.25,26.0]
[1747781603496,5.97692905,167.31,167.25,26.0]
[1747781603673,5.97621466,167.33,167.27,26.0]
[1747781603868,5.97621466,167.33,167.29,26.0]
[1747781605608,20.91447619,167.35,167.29,26.0]
[1747781607308,14.93897575,167.35,167.29,26.0]
[1747781610688,20.91447619,167.35,167.29,26.0]
[1747781613090,14.93897575,167.35,167.29,26.0]
[1747781617430,5.9747864,167.37,167.29,26.0]
[1747781617814,5.9747864,167.37,167.29,52.88]
[1747781618013,14.93681946,167.38,167.29,52.88]
[1747781620160,5.97371565,167.4,167.29,52.88]
[1747781620316,5.97371565,167.4,167.3,1.6069]
[1747781620638,5.97371565,167.4,167.33,26.0]
[1747781620815,5.97371565,167.4,167.37,26.0]
[1747781621225,20.90753692,167.41,167.37,26.0]
[1747781623450,63.38220841,167.41,167.35,26.0]
[1747781623657,12.6078774,167.4,167.35,26.0]
[1747781624540,20.90753692,167.41,167.35,26.0]
[1747781626151,33.51541432,167.41,167.35,26.0]
[1747781627117,20.90753692,167.41,167.35,26.0]
[1747781627629,33.51541432,167.41,167.35,26.0]
[1747781628238,63.38220841,167.41,167.35,26.0]
[1747781628446,12.6078774,167.4,167.35,26.0]
[1747781628740,63.38220841,167.41,167.35,26.0]
[1747781628913,50.77433101,167.41,167.35,26.0]
[1747781629832,63.38220841,167.41,167.35,26.0]
[1747781631960,12.6078774,167.4,167.35,26.0]
[1747781633546,20.90925383,167.39,167.35,26.0]
[1747781634253,12.6078774,167.38,167.34,29.3]
[1747781634429,63.38749385,167.39,167.34,29.3]
[1747781635351,50.77961645,167.39,167.34,29.3]
[1747781635754,63.38749385,167.39,167.34,29.3]
[1747781639760,89.38749385,167.39,167.34,29.3]
[1747781640064,63.38749385,167.39,167.34,29.3]
[1747781642064,31.25752626,167.38,167.34,29.3]
[1747781643938,20.9117524,167.37,167.34,29.3]
[1747781646652,171.2196298,167.37,167.26,7.8952]
[1747781646848,12.6078774,167.34,167.27,29.28]
[1747781647353,12.6078774,167.34,167.28,26.0]
[1747781648054,33.52212896,167.35,167.28,26.0]
[1747781648854,12.6078774,167.34,167.28,26.0]
[1747781649244,50.7917538,167.35,167.28,26.0]
[1747781649555,63.3996312,167.35,167.28,26.0]
[1747781651456,33.52212896,167.35,167.28,26.0]
[1747781653162,20.91675132,167.33,167.28,26.0]
[1747781658144,5.97550044,167.35,167.3,26.0]
[1747781658346,5.97550044,167.35,167.21,14.12834623]
[1747781658347,26.88,167.34,167.21,14.12834623]
[1747781658568,31.25752626,167.33,167.21,37.87508573]
[1747781658748,26.88,167.33,167.26,26.0]
[1747781659071,26.88,167.33,167.27,29.3]
[1747781660167,20.91800142,167.32,167.27,29.3]
[1747781661966,33.52587882,167.32,167.27,29.3]
[1747781662643,63.40873801,167.32,167.27,29.3]
[1747781662858,12.6078774,167.31,167.27,29.3]
[1747781663475,20.92050209,167.3,167.27,29.3]
[1747781664361,33.52837949,167.3,167.27,29.3]
[1747781672368,20.92050209,167.3,167.27,29.3]
[1747781675477,26.0,167.28,167.27,29.3]
[1747781675656,26.0,167.28,167.22,30.928]
[1747781676963,5.97835834,167.27,167.22,30.928]
[1747781677765,20.92425419,167.27,167.22,30.928]
[1747781678983,20.92425419,167.27,167.22,29.28]
[1747781684681,5.97835834,167.27,167.22,29.28]
[1747781689071,5.97764361,167.29,167.22,56.16]
[1747781690188,33.48642101,167.32,167.22,56.16]
[1747781691092,20.91800142,167.32,167.22,56.16]
[1747781692864,20.91800142,167.32,167.25,26.0]
[1747781693280,20.91800142,167.32,167.25,27.5517]
[1747781694799,14.94142959,167.32,167.25,27.5517]
[1747781695832,137.7,167.39,167.27,1.6016]
[1747781696114,31.37005875,167.42,167.31,32.0088]
[1747781696115,5.97335881,167.41,167.31,32.0088]
[1747781696404,5.97335881,167.41,167.35,26.0]
[1747781696691,5.97308198,167.42,167.35,74.25955964]
[1747781696876,5.97228858,167.44,167.35,74.25955964]
[1747781697073,5.97228858,167.44,167.36,18.99955964]
[1747781697397,5.97228858,167.44,167.39,26.0]
[1747781698794,5.97193191,167.45,167.39,26.0]
[1747781699793,20.9017617,167.45,167.39,26.0]
[1747781701395,5.97193191,167.45,167.39,26.0]
[1747781704897,5.97193191,167.45,167.41,26.0]
[1747781705195,5.97086219,167.48,167.41,26.0]
[1747781705382,33.4658253,167.49,167.41,26.0]
[1747781705586,12.56841959,167.48,167.41,26.0]
[1747781706097,31.21806845,167.47,167.41,26.0]
[1747781706305,12.56841959,167.48,167.41,26.0]
[1747781706490,18.64964886,167.48,167.41,26.0]
[1747781706791,31.21806845,167.48,167.41,26.0]
[1747781707200,12.56841959,167.46,167.41,26.0]
[1747781707383,5.97193191,167.45,167.41,26.0]
[1747781708594,20.9017617,167.45,167.41,26.0]
[1747781708897,20.9017617,167.45,167.39,26.0]
[1747781710103,20.9017617,167.45,167.38,26.0]
[1747781710804,20.9017617,167.45,167.39,0.5]
[1747781711485,5.97193191,167.45,167.39,0.5]
[1747781711805,20.90074378,167.46,167.39,0.5]
[1747781711986,33.46916337,167.46,167.39,0.5]
[1747781712500,20.90074378,167.46,167.39,0.5]
[1747781713709,33.46916337,167.46,167.39,0.5]
[1747781714800,20.90074378,167.46,167.39,0.5]
[1747781715001,33.46916337,167.46,167.39,0.5]
[1747781719309,12.56841959,167.45,167.39,0.5]
[1747781720323,50.75862028,167.46,167.39,0.5]
[1747781720508,12.56841959,167.44,167.39,0.5]
[1747781720700,150.26841959,167.44,167.38,26.0]
[1747781721119,5.97264528,167.43,167.38,26.0]
[1747781722121,20.90425849,167.43,167.38,26.0]
[1747781723618,20.90425849,167.43,167.39,0.5]
[1747781727708,20.90425849,167.43,167.38,26.0]
[1747781729418,20.90425849,167.43,167.39,0.5]
[1747781729922,20.90425849,167.43,167.38,26.0]
[1747781732410,5.97264528,167.43,167.38,26.0]
[1747781734438,5.97264528,167.43,167.39,0.5]
[1747781738943,5.97264528,167.43,167.4,3.42039717]
[1747781740242,5.97264528,167.43,167.41,3.42039717]
[1747781741745,20.90425849,167.43,167.38,3.42039717]
[1747781743045,20.90425849,167.43,167.39,3.42039717]
[1747781744043,33.45039225,167.43,167.39,3.42039717]
[1747781744244,33.45039225,167.43,167.38,3.42039717]
[1747781745827,31.19578262,167.42,167.38,3.42039717]
[1747781748054,20.90675585,167.41,167.38,3.42039717]
[1747781751748,5.97264528,167.43,167.38,3.42039717]
[1747781753345,5.97264528,167.43,167.39,3.42039717]
[1747781754842,5.97264528,167.43,167.4,3.42039717]
[1747781755037,5.9715753,167.46,167.4,3.42039717]